fUST/lending_fUST_20251210
["ID","MTS","AMOUNT","RATE_DAILY","PERIOD"]
[398101571,1765366240347,-95264.93874024,0.00014736,2]
[398101579,1765366243249,-1102.80151647,0.00014736,2]
[398101584,1765366245998,-2568.3774746,0.00014736,2]
[398101585,1765366246009,-1063.88226869,0.00014736,2]
[398101586,1765366246019,-1066.61784637,0.0001479,2]
[398101589,1765366683038,183.06,5.974e-05,2]
[398101591,1765367342541,2000.0,5.971e-05,3]
[398101641,1765367432159,-278.44682514,0.00012363,2]
[398101642,1765367432265,-57.84868161,0.00012363,2]
[398101643,1765367432274,-383.95338428,0.00012363,2]
[398101644,1765367432283,-400.0,0.00013013,2]
[398101645,1765367432293,-158.19793411,0.00013068,2]
[398101725,1765367438922,-219.42243531,0.00013068,2]
[398101727,1765367438932,-150.0,0.00013356,2]
[398101729,1765367438941,-250.0,0.00013575,2]
[398101731,1765367438951,-191.88299266,0.00014217,7]
[398101732,1765367438961,-291.30857203,0.00014689,2]
[398101921,1765367441368,-908.69142797,0.00014689,2]
[398101923,1765367441378,-5480.24791999,0.0001469,2]
[398101925,1765367441389,-205.0,0.00014733,2]
[398101927,1765367441398,-500.0,0.00014735,2]
[398101929,1765367441408,-500.0,0.00014735,2]
[398101931,1765367441419,-500.0,0.00014735,2]
[398101933,1765367441428,-500.0,0.00014735,2]
[398101935,1765367441437,-500.0,0.00014735,2]
[398101937,1765367441447,-500.0,0.00014735,2]
[398101939,1765367441456,-285.9398456,0.00014735,2]
[398101941,1765367441466,-500.0,0.00014735,2]
[398101943,1765367441475,-500.0,0.00014735,2]
[398101945,1765367441484,-500.0,0.00014735,2]
[398101947,1765367441494,-500.0,0.00014735,2]
[398101949,1765367441503,-500.0,0.00014735,2]
[398101951,1765367441512,-500.0,0.00014735,2]
[398101953,1765367441521,-500.0,0.00014735,2]
[398101955,1765367441531,-500.0,0.00014735,2]
[398101957,1765367441540,-500.0,0.00014735,2]
[398101959,1765367441549,-500.0,0.00014735,2]
[398101961,1765367441559,-500.0,0.00014735,2]
[398101963,1765367441568,-2000.0,0.00014789,2]
[398101965,1765367441577,-773718.90482224,0.0001479,2]
[398101967,1765367441590,-3572.31232445,0.0001479,2]
[398102169,1765367443516,-24086.79305869,0.0001479,2]
[398102183,1765367443643,-88621.98979462,0.0001479,2]
[398102185,1765367443652,-299.4881551,0.00014889,15]
[398102187,1765367443662,-300.0,0.0001489,3]
[398102189,1765367443671,-1000.0,0.00014911,2]
[398102191,1765367443680,-44525.25159066,0.0001499,2]
[398102454,1765367446196,-1513.24810086,0.0001499,2]
[398102461,1765367446252,-9205.0,0.0001499,2]
[398102464,1765367446264,-16481.4019917,0.0001499,2]
[398102591,1765367462824,173.65,6.5e-05,2]
[398102592,1765367463105,173.65,6.5e-05,2]
[398102593,1765367463393,173.65,6.5e-05,2]
[398102594,1765367463805,173.65,6.5e-05,2]
[398102596,1765368056561,1000.0,2e-05,7]
[398102597,1765368067193,5000.0,2e-05,30]
[398102598,1765368099045,2000.0,2e-05,7]
[398102599,1765368156656,2000.0,2.1e-05,2]
[398102600,1765368180376,1000.0,2.2e-05,7]
[398102601,1765368248740,3159.42855783,2.3e-05,7]
[398102605,1765368542471,2000.0,1.999e-05,3]
[398102644,1765368632372,-150.0,6.828e-05,2]
[398102646,1765368632382,-150.0,7.153e-05,2]
[398102648,1765368632392,-150.0,7.478e-05,2]
[398102650,1765368632401,-150.0,7.778e-05,2]
[398102652,1765368632410,-214.64741832,8.6e-05,2]
[398102654,1765368632419,-177.0,8.848e-05,2]
[398102656,1765368632428,-251.75564597,9.022e-05,2]
[398102658,1765368632438,-167.3220196,0.00010523,2]
[398102661,1765368632450,-841.6034007,0.00010523,2]
[398102666,1765368632487,-600.0,0.00010523,2]
[398102668,1765368632499,-167.2507994,0.00010523,2]
[398102670,1765368632508,-204.0,0.00010848,2]
[398102672,1765368632518,-231.0,0.00012848,2]
[398102674,1765368632528,-291.0,0.00012908,2]
[398102676,1765368632537,-300.0,0.00012908,2]
[398102678,1765368632547,-6101.8475841,0.00012909,2]
[398102680,1765368632556,-300.0,0.00013166,2]
[398102682,1765368632566,-300.0,0.00013166,2]
[398102684,1765368632575,-300.0,0.00013166,2]
[398102686,1765368632585,-300.0,0.00013166,2]
[398102688,1765368632598,-300.0,0.00013166,2]
[398102690,1765368632607,-300.0,0.00013166,2]
[398102692,1765368632617,-300.0,0.00013166,2]
[398102694,1765368632627,-300.0,0.00013166,2]
[398102696,1765368632636,-300.0,0.00013166,2]
[398102698,1765368632646,-300.0,0.00013166,2]
[398102700,1765368632655,-300.0,0.00013166,2]
[398102702,1765368632665,-300.0,0.00013166,2]
[398102704,1765368632675,-300.0,0.00013166,2]
[398102706,1765368632685,-300.0,0.00013166,2]
[398102708,1765368632694,-300.0,0.00013166,2]
[398102710,1765368632703,-600.0,0.00013428,2]
[398102712,1765368632713,-1000.0,0.00013699,2]
[398102714,1765368632722,-347.34343969,0.00014102,2]
[398102715,1765368632731,-420.0,0.00014157,2]
[398102717,1765368632740,-2000.0,0.00014216,3]
[398102719,1765368632750,-163.75275408,0.00014535,2]
[398102721,1765368632759,-500.0,0.00014535,2]
[398102723,1765368632768,-500.0,0.00014535,2]
[398102724,1765368632777,-500.0,0.00014535,2]
[398102725,1765368632787,-219.19445409,0.00014535,2]
[398102726,1765368632797,-500.0,0.00014535,2]
[398102727,1765368632806,-500.0,0.00014535,2]
[398102728,1765368632816,-500.0,0.00014535,2]
[398102729,1765368632826,-500.0,0.00014535,2]
[398102730,1765368632835,-500.0,0.00014535,2]
[398102731,1765368632845,-500.0,0.00014535,2]
[398102732,1765368632855,-500.0,0.00014535,2]
[398102733,1765368632865,-500.0,0.00014535,2]
[398102734,1765368632874,-500.0,0.00014535,2]
[398102735,1765368632884,-500.0,0.00014535,2]
[398102736,1765368632893,-500.0,0.00014535,2]
[398102737,1765368632903,-500.0,0.00014535,2]
[398102738,1765368632912,-557.10683582,0.00014535,2]
[398102739,1765368632922,-73572.54565038,0.00014536,2]
[398102771,1765368643620,-500.0,0.00014535,2]
[398102772,1765368643630,-500.0,0.00014535,2]
[398102773,1765368643641,-500.0,0.00014535,2]
[398102774,1765368643651,-18.91961997,0.00014535,2]
[398102775,1765368643768,-481.08038003,0.00014535,2]
[398102776,1765368643778,-500.0,0.00014535,2]
[398102777,1765368643793,-500.0,0.00014535,2]
[398102778,1765368643803,-500.0,0.00014535,2]
[398102779,1765368643813,-500.0,0.00014535,2]
[398102780,1765368643823,-500.0,0.00014535,2]
[398102781,1765368643833,-500.0,0.00014535,2]
[398102782,1765368643843,-500.0,0.00014535,2]
[398102783,1765368643853,-500.0,0.00014535,2]
[398102784,1765368643862,-500.0,0.00014535,2]
[398102785,1765368643872,-500.0,0.00014535,2]
[398102786,1765368643882,-500.0,0.00014535,2]
[398102787,1765368643892,-500.0,0.00014535,2]
[398102788,1765368643901,-500.0,0.00014535,2]
[398102789,1765368643910,-500.0,0.00014535,2]
[398102790,1765368643920,-500.0,0.00014535,2]
[398102791,1765368643931,-500.0,0.00014535,2]
[398102792,1765368643941,-500.0,0.00014535,2]
[398102793,1765368643950,-500.0,0.00014535,2]
[398102794,1765368643961,-500.0,0.00014535,2]
[398102795,1765368643971,-500.0,0.00014535,2]
[398102796,1765368643980,-500.0,0.00014535,2]
[398102797,1765368643990,-500.0,0.00014535,2]
[398102798,1765368644000,-492.55927436,0.00014535,2]
[398102799,1765368644010,-500.0,0.00014535,2]
[398102800,1765368644021,-500.0,0.00014535,2]
[398102801,1765368644032,-500.0,0.00014535,2]
[398102802,1765368644041,-500.0,0.00014535,2]
[398102803,1765368644051,-500.0,0.00014535,2]
[398102804,1765368644060,-500.0,0.00014535,2]
[398102805,1765368644070,-500.0,0.00014535,2]
[398102806,1765368644080,-500.0,0.00014535,2]
[398102807,1765368644090,-500.0,0.00014535,2]
[398102808,1765368644099,-500.0,0.00014535,2]
[398102809,1765368644109,-200.0,0.00014535,2]
[398102810,1765368644119,-5403.64040989,0.00014536,2]
[398102834,1765369742963,173.65,6.5e-05,2]
[398102835,1765369743348,173.65,6.5e-05,2]
[398102836,1765369743725,173.65,6.5e-05,2]
[398102837,1765369744307,173.65,6.5e-05,2]
[398102869,1765369832467,-164.6528038,0.00012295,2]
[398102870,1765369832477,-150.0,0.00013112,2]
[398102871,1765369832486,-215.07671315,0.00013283,2]
[398102872,1765369832495,-1080.230721,0.00013699,2]
[398102873,1765369832505,-500.0,0.0001399,2]
[398102874,1765369832515,-500.0,0.0001399,2]
[398102875,1765369832524,-500.0,0.0001399,2]
[398102876,1765369832533,-500.0,0.0001399,2]
[398102877,1765369832543,-500.0,0.0001399,2]
[398102878,1765369832553,-500.0,0.0001399,2]
[398102879,1765369832562,-500.0,0.0001399,2]
[398102880,1765369832572,-1200.0,0.00014214,2]
[398102881,1765369832581,-2000.0,0.00014215,3]
[398102882,1765369832590,-165.216,0.00014245,2]
[398102883,1765369832599,-300.0,0.0001453,2]
[398102884,1765369832608,-300.0,0.0001453,2]
[398102885,1765369832617,-300.0,0.0001453,2]
[398102886,1765369832627,-1200.0,0.00014531,2]
[398102887,1765369832636,-25704.94437568,0.00014534,2]
[398102888,1765369832645,-2000.0,0.00014535,2]
[398102889,1765369832654,-1771.123742,0.00014536,2]
[398102890,1765369832663,-297.4466551,0.00014536,2]
[398102891,1765369832673,-427.13,0.00014694,2]
[398102892,1765369832682,-219.22251063,0.00014735,2]
[398102893,1765369832692,-300.0,0.00014826,2]
[398102894,1765369832701,-300.0,0.00014826,2]
[398102895,1765369832711,-300.0,0.00014826,2]
[398102896,1765369832720,-300.0,0.00014826,2]
[398102897,1765369832730,-300.0,0.00014826,2]
[398102898,1765369832740,-300.0,0.00014826,2]
[398102899,1765369832750,-300.0,0.00014826,2]
[398102900,1765369832759,-300.0,0.00014826,2]
[398102901,1765369832768,-300.0,0.00014826,2]
[398102902,1765369832778,-300.0,0.00014826,2]
[398102903,1765369832788,-300.0,0.00014826,2]
[398102904,1765369832797,-300.0,0.00014826,2]
[398102905,1765369832807,-300.0,0.00014826,2]
[398102906,1765369832816,-300.0,0.00014826,2]
[398102907,1765369832826,-300.0,0.00014826,2]
[398102908,1765369832835,-600.0,0.00014826,2]
[398102909,1765369832845,-6424.79190465,0.00015,10]
[398102910,1765369832854,-193.9,0.00015068,3]
[398102911,1765369832864,-177.0,0.00015112,2]
[398102912,1765369832874,-533.88981491,0.00015522,2]
[398102913,1765369832883,-151.0,0.00015522,2]
[398102914,1765369832893,-500.0,0.0001589,2]
[398102915,1765369832902,-347.0,0.0001591,2]
[398102916,1765369832911,-160.0,0.00016067,2]
[398102917,1765369832921,-553.64373807,0.0001607,2]
[398102918,1765369832931,-151.0,0.0001607,2]
[398102919,1765369832940,-171.21292056,0.00016109,2]
[398102920,1765369832949,-720.0,0.00016308,2]
[398102921,1765369832959,-189.7472,0.00016308,2]
[398102922,1765369832972,-766.0,0.00016376,2]
[398102923,1765369832982,-500.0,0.00016438,2]
[398102924,1765369832991,-200.0,0.00016615,2]
[398102925,1765369833000,-199.21460654,0.00016618,2]
[398102926,1765369833010,-574.12855637,0.00016618,2]
[398102927,1765369833019,-151.0,0.00016618,2]
[398102928,1765369833028,-189.7472,0.00016634,2]
[398102929,1765369833038,-415.0,0.00016685,2]
[398102930,1765369833047,-500.0,0.00016892,2]
[398102931,1765369833056,-500.0,0.00016986,2]
[398102932,1765369833066,-21962.09894151,0.0001699,2]
[398102933,1765369833087,-6699.49804609,0.0001699,2]
[398102934,1765369833099,-8469.92604423,0.0001699,2]
[398102946,1765369839074,-500.0,0.0001607,2]
[398102947,1765369839087,-342.8617,0.00016109,2]
[398102948,1765369839096,-342.8617,0.00016431,2]
[398102949,1765369839105,-500.0,0.00016989,2]
[398102950,1765369839115,-500.0,0.00016989,2]
[398102951,1765369839124,-291.52849533,0.00016989,2]
[398102952,1765369839135,-208.47150467,0.00016989,2]
[398102953,1765369839145,-299.44682901,0.00016989,2]
[398102954,1765369839154,-500.0,0.00016989,2]
[398102955,1765369839164,-500.0,0.00016989,2]
[398102956,1765369839174,-500.0,0.00016989,2]
[398102957,1765369839184,-500.0,0.00016989,2]
[398102958,1765369839193,-244.99749047,0.00016989,2]
[398102959,1765369839205,-255.00250953,0.00016989,2]
[398102960,1765369839215,-500.0,0.00016989,2]
[398102961,1765369839224,-500.0,0.00016989,2]
[398102962,1765369839234,-500.0,0.00016989,2]
[398102963,1765369839243,-500.0,0.00016989,2]
[398102964,1765369839253,-260.71068359,0.00016989,2]
[398102965,1765369839262,-500.0,0.00016989,2]
[398102966,1765369839271,-122.32936099,0.00016989,2]
[398102976,1765369840803,-233.39486022,0.00016989,2]
[398102977,1765369840813,-383.27098023,0.00016989,2]
[398102978,1765369840822,-500.0,0.00016989,2]
[398102979,1765369840832,-500.0,0.00016989,2]
[398102980,1765369840841,-383.37922955,0.00016989,2]
[398102981,1765369840860,-116.62077045,0.00016989,2]
[398102982,1765369840869,-316.71078124,0.00016989,2]
[398102983,1765369840880,-183.28921876,0.00016989,2]
[398102984,1765369840890,-269.35981324,0.00016989,2]
[398102985,1765369840902,-230.64018676,0.00016989,2]
[398102986,1765369840912,-500.0,0.00016989,2]
[398102987,1765369840922,-500.0,0.00016989,2]
[398102988,1765369840932,-309.85781848,0.00016989,2]
[398102989,1765369840943,-190.14218152,0.00016989,2]
[398102990,1765369840952,-500.0,0.00016989,2]
[398102991,1765369840962,-500.0,0.00016989,2]
[398102992,1765369840971,-500.0,0.00016989,2]
[398102993,1765369840982,-500.0,0.00016989,2]
[398102994,1765369840991,-471.93201152,0.00016989,2]
[398103001,1765369843912,-206.90233789,0.00012842,2]
[398103002,1765369843924,-28.06798848,0.00016989,2]
[398103003,1765369843935,-500.0,0.00016989,2]
[398103004,1765369843944,-400.07491896,0.00016989,2]
[398103005,1765369843955,-99.92508104,0.00016989,2]
[398103006,1765369843965,-189.62133064,0.00016989,2]
[398103007,1765369843976,-310.37866936,0.00016989,2]
[398103008,1765369843986,-555.53161639,0.00016989,2]
[398103009,1765369843996,-500.0,0.00016989,2]
[398103010,1765369844006,-500.0,0.00016989,2]
[398103011,1765369844015,-500.0,0.00016989,2]
[398103012,1765369844025,-500.0,0.00016989,2]
[398103013,1765369844035,-500.0,0.00016989,2]
[398103014,1765369844044,-500.0,0.00016989,2]
[398103015,1765369844054,-500.0,0.00016989,2]
[398103016,1765369844063,-500.0,0.00016989,2]
[398103017,1765369844073,-500.0,0.00016989,2]
[398103018,1765369844087,-500.0,0.00016989,2]
[398103019,1765369844096,-500.0,0.00016989,2]
[398103020,1765369844105,-500.0,0.00016989,2]
[398103021,1765369844115,-500.0,0.00016989,2]
[398103022,1765369844125,-500.0,0.00016989,2]
[398103023,1765369844134,-500.0,0.00016989,2]
[398103024,1765369844144,-500.0,0.00016989,2]
[398103025,1765369844155,-500.0,0.00016989,2]
[398103026,1765369844165,-500.0,0.00016989,2]
[398103027,1765369844178,-500.0,0.00016989,2]
[398103028,1765369844195,-500.0,0.00016989,2]
[398103029,1765369844211,-500.0,0.00016989,2]
[398103030,1765369844225,-500.0,0.00016989,2]
[398103031,1765369844236,-500.0,0.00016989,2]
[398103032,1765369844250,-500.0,0.00016989,2]
[398103033,1765369844264,-500.0,0.00016989,2]
[398103034,1765369844278,-500.0,0.00016989,2]
[398103035,1765369844291,-19784.22689366,0.0001699,2]
[398103036,1765369844312,-43084.25007451,0.0001699,2]
[398103037,1765369844327,-204.0,0.00017112,2]
[398103038,1765369844340,-595.37131296,0.00017166,2]
[398103039,1765369844353,-151.0,0.00017166,2]
[398103040,1765369844365,-500.0,0.00017534,2]
[398103041,1765369844378,-152502.35351726,0.00017699,2]
[398103044,1765369846623,-253.7425319,0.00017699,2]
[398103045,1765369846638,-3137.16283598,0.00017699,2]
[398103082,1765371031599,-474.11630145,0.00014999,3]
[398103089,1765371031653,-323.0,0.00014999,3]
[398103121,1765371037700,-1202.88369855,0.00014999,3]
[398103123,1765371037709,-150.0,0.00015033,2]
[398103124,1765371037718,-1857.632307,0.00015067,3]
[398103135,1765371037807,-142.367693,0.00015067,3]
[398103137,1765371037817,-300.0,0.00015989,2]
[398103139,1765371037826,-1200.0,0.00015989,2]
[398103141,1765371037836,-500.0,0.00015989,2]
[398103143,1765371037846,-500.0,0.00015989,2]
[398103145,1765371037855,-500.0,0.00015989,2]
[398103147,1765371037865,-500.0,0.00015989,2]
[398103149,1765371037874,-500.0,0.00015989,2]
[398103151,1765371037883,-216.63877953,0.00015989,2]
[398103500,1765371042917,-283.36122047,0.00015989,2]
[398103501,1765371042927,-500.0,0.00015989,2]
[398103502,1765371042936,-372.03877953,0.00015989,2]
[398103503,1765371042947,-127.96122047,0.00015989,2]
[398103504,1765371042957,-500.0,0.00015989,2]
[398103505,1765371042965,-500.0,0.00015989,2]
[398103506,1765371042975,-500.0,0.00015989,2]
[398103507,1765371042985,-500.0,0.00015989,2]
[398103508,1765371042994,-500.0,0.00015989,2]
[398103509,1765371043003,-500.0,0.00015989,2]
[398103510,1765371043012,-500.0,0.00015989,2]
[398103511,1765371043022,-500.0,0.00015989,2]
[398103512,1765371043032,-500.0,0.00015989,2]
[398103513,1765371043042,-500.0,0.00015989,2]
[398103514,1765371043051,-500.0,0.00015989,2]
[398103515,1765371043060,-585.38920041,0.00015989,2]
[398103516,1765371043070,-500.0,0.00015989,2]
[398103517,1765371043080,-500.0,0.00015989,2]
[398103518,1765371043090,-500.0,0.00015989,2]
[398103519,1765371043100,-500.0,0.00015989,2]
[398103520,1765371043110,-500.0,0.00015989,2]
[398103521,1765371043121,-500.0,0.00015989,2]
[398103522,1765371043131,-500.0,0.00015989,2]
[398103523,1765371043139,-500.0,0.00015989,2]
[398103524,1765371043149,-500.0,0.00015989,2]
[398103525,1765371043158,-500.0,0.00015989,2]
[398103526,1765371043167,-500.0,0.00015989,2]
[398103527,1765371043176,-500.0,0.00015989,2]
[398103528,1765371043186,-22.30809382,0.00015989,2]
[398103529,1765371043198,-477.69190618,0.00015989,2]
[398103530,1765371043207,-142.81931764,0.00015989,2]
[398103531,1765371043991,-357.18068236,0.00015989,2]
[398103532,1765371044000,-500.0,0.00015989,2]
[398103533,1765371044010,-63.20061511,0.00015989,2]
[398103534,1765371044021,-436.79938489,0.00015989,2]
[398103535,1765371044031,-500.0,0.00015989,2]
[398103536,1765371044040,-500.0,0.00015989,2]
[398103537,1765371044049,-500.0,0.00015989,2]
[398103538,1765371044059,-500.0,0.00015989,2]
[398103539,1765371044068,-500.0,0.00015989,2]
[398103540,1765371044078,-500.0,0.00015989,2]
[398103542,1765371044087,-594.55784012,0.00015989,2]
[398103544,1765371044096,-500.0,0.00015989,2]
[398103546,1765371044105,-500.0,0.00015989,2]
[398103548,1765371044114,-500.0,0.00015989,2]
[398103549,1765371044123,-500.0,0.00015989,2]
[398103550,1765371044132,-500.0,0.00015989,2]
[398103551,1765371044141,-500.0,0.00015989,2]
[398103552,1765371044151,-500.0,0.00015989,2]
[398103553,1765371044160,-500.0,0.00015989,2]
[398103554,1765371044170,-28329.14764294,0.0001599,2]
[398103555,1765371044181,-14296.049,0.0001599,2]
[398103556,1765371044193,-7660.00359772,0.0001599,2]
[398103558,1765371045649,-1467.28795612,0.0001599,2]
[398103559,1765371045757,-1098.37612677,0.0001599,2]
[398103560,1765371045813,-919.8,0.0001599,2]
[398103562,1765371562333,-0.01,0.0001,2]
[398103563,1765371562564,-0.02,0.0001,2]
[398103564,1765371565279,-0.04,0.0001,2]
[398103565,1765371565329,-9937.6535679,0.0001,2]
[398103566,1765371565423,-62.2764321,0.0001,2]
[398103568,1765371935871,30581.3107634,0.0002,120]
[398103572,1765372049792,1333.12,0.00012216,2]
[398103834,1765372240184,-1101.219185,0.00013699,2]
[398103836,1765372240194,-615.0,0.00013699,2]
[398103838,1765372240204,-347.34343969,0.00014301,2]
[398103840,1765372240213,-1000.0,0.00014763,2]
[398103842,1765372240223,-150.0,0.00014791,2]
[398103844,1765372240232,-300.0,0.00015068,3]
[398103846,1765372240241,-170.8402646,0.00015884,2]
[398103848,1765372240250,-300.0,0.00015989,2]
[398103850,1765372240259,-436.0,0.00015989,2]
[398103852,1765372240269,-3080.83374837,0.0001599,2]
[398104102,1765372243115,-1304.96097041,0.0001599,2]
[398104103,1765372243137,-5559.77044878,0.0001599,2]
[398104118,1765372905574,6361.0,0.00014141,30]
[398104119,1765373304644,9159.42855783,2.3e-05,7]
[398104160,1765373432100,-645.0,0.00015574,2]
[398104162,1765373432110,-150.0,0.00015574,2]
[398104164,1765373432121,-216.4797093,0.00015574,2]
[398104167,1765373432130,-162.096,0.00015988,2]
[398104168,1765373432141,-183.20273699,0.00015988,2]
[398104170,1765373432151,-63.42155371,0.00015988,2]
[398104258,1765373438286,-150.0,6.872e-05,2]
[398104260,1765373438297,-150.0,7.199e-05,2]
[398104262,1765373438307,-236.57844629,0.00015988,2]
[398104264,1765373438317,-72.83667539,0.00015988,2]
[398104267,1765373438329,-227.16332461,0.00015988,2]
[398104269,1765373438338,-90.09729183,0.00015988,2]
[398104271,1765373438350,-209.90270817,0.00015988,2]
[398104273,1765373438360,-259.14357403,0.00015988,2]
[398104699,1765373443267,-150.0,7.526e-05,2]
[398104700,1765373443277,-150.0,7.853e-05,2]
[398104701,1765373443288,-40.85642597,0.00015988,2]
[398104702,1765373443297,-689.54653955,0.00015988,2]
[398104703,1765373443309,-104.45346045,0.00015988,2]
[398104704,1765373443319,-788.26971955,0.00015989,2]
[398104705,1765373443331,-300.0,0.00015989,2]
[398104718,1765373446112,-911.73028045,0.00015989,2]
[398104720,1765373446122,-2493.62832378,0.0001599,2]
[398104723,1765373446133,-6071.99999998,0.0001599,2]
[398104845,1765374632209,-229.20583308,0.0001443,2]
[398104847,1765374632219,-261.94952352,0.0001443,2]
[398104850,1765374632229,-176.08246139,0.0001443,2]
[398104852,1765374632239,-316.63148207,0.0001443,2]
[398104853,1765374632248,-150.0,0.00014664,2]
[398104855,1765374632257,-301.1333271,0.00014897,2]
[398104858,1765374632267,-278.57726515,0.0001519,2]
[398104859,1765374632276,-408.88683436,0.0001519,2]
[398104862,1765374632286,-1200.0,0.00015757,2]
[398104864,1765374632296,-300.0,0.00015758,2]
[398104865,1765374632305,-4069.50194,0.00015759,2]
[398104867,1765374632315,-5437.49580794,0.0001589,2]
[398104870,1765374632324,-251.09007953,0.00015989,2]
[398104872,1765374632334,-451.96214315,0.00015989,2]
[398104874,1765374632343,-162.097,0.00015989,2]
[398104875,1765374632353,-803.4882545,0.00015989,2]
[398104878,1765374632362,-1254.19494725,0.00015989,2]
[398104880,1765374632373,-2000.0,0.00015989,2]
[398104882,1765374632382,-27718.14218513,0.0001599,2]
[398104884,1765374632392,-151.0,0.0001599,2]
[398104885,1765374632401,-152.048235,0.0001599,2]
[398104888,1765374632410,-151.0,0.0001599,2]
[398104890,1765374632420,-151.0,0.0001599,2]
[398104892,1765374632430,-404.0,0.00016,3]
[398104894,1765374632439,-151.0,0.00016385,2]
[398104896,1765374632448,-151.0,0.00016385,2]
[398104898,1765374632459,-151.0,0.00016385,2]
[398104900,1765374632469,-415.0,0.00016385,2]
[398104901,1765374632479,-151.0,0.00016589,2]
[398104903,1765374632488,-151.0,0.00016589,2]
[398104905,1765374632497,-151.0,0.00016589,2]
[398104907,1765374632507,-151.0,0.00016589,2]
[398104909,1765374632516,-151.0,0.00016589,2]
[398104911,1765374632525,-151.0,0.00016589,2]
[398104913,1765374632534,-151.0,0.00016589,2]
[398104914,1765374632544,-500.0,0.00016589,2]
[398104916,1765374632553,-500.0,0.00016589,2]
[398104918,1765374632563,-500.0,0.00016589,2]
[398104920,1765374632572,-500.0,0.00016589,2]
[398104922,1765374632581,-500.0,0.00016589,2]
[398104923,1765374632591,-500.0,0.00016589,2]
[398104925,1765374632601,-400.74292435,0.00016589,2]
[398104927,1765374632610,-500.0,0.00016589,2]
[398104929,1765374632619,-500.0,0.00016589,2]
[398104931,1765374632628,-500.0,0.00016589,2]
[398104933,1765374632638,-378.17025346,0.00016589,2]
[398104935,1765374632647,-151.0,0.0001659,2]
[398104937,1765374632657,-151.0,0.0001659,2]
[398104939,1765374632666,-151.0,0.0001659,2]
[398104941,1765374632676,-151.0,0.0001659,2]
[398104943,1765374632685,-151.0,0.0001659,2]
[398104945,1765374632696,-151.0,0.0001659,2]
[398104947,1765374632706,-153.12251,0.0001659,2]
[398104949,1765374632715,-151.0,0.0001659,2]
[398104951,1765374632724,-151.0,0.0001659,2]
[398104953,1765374632733,-185174.20566922,0.0001659,2]
[398104956,1765374632745,-55256.51361264,0.0001659,2]
[398104958,1765374632757,-1605.72136513,0.0001659,2]
[398104960,1765374632767,-2730.9520842,0.0001659,2]
[398105012,1765374638332,-151.0,0.0001599,2]
[398105014,1765374638342,-212.15358,0.00016589,2]
[398105016,1765374638352,-151.0,0.00016589,2]
[398105018,1765374638363,-151.0,0.0001659,2]
[398105020,1765374638372,-4334.84642,0.0001659,2]
[398105023,1765374638384,-2521.307953,0.0001659,2]
[398105250,1765374640602,-289.82270362,0.0001659,2]
[398105253,1765374640616,-440.45,0.0001659,2]
[398105769,1765374646805,-151.0,0.0001599,2]
[398105771,1765374646815,-250.70211563,0.0001659,2]
[398105773,1765374646826,-10310.16204709,0.0001659,2]
[398107246,1765374662130,170.71,6.5e-05,2]
[398107824,1765374722308,218.02,6.5e-05,2]
[398107825,1765374724386,218.01,6.523e-05,2]
[398107832,1765374782377,162.26,6.5e-05,2]
[398107847,1765374842438,71.58144217,6.5e-05,2]
[398107848,1765374842469,143.69855783,6.5e-05,2]